Cogmind - Beta 13 @@@ ROGUE MODE // 2024.08.03 @ 22:34:07 Player: DreamweaverKara Result: Destroyed by as-36159 with Assembled Heavy Rifle Performance ------------- Evolutions (0) 0 Regions Visited (2) 400 Robots Destroyed (5) 25 Value Destroyed (98) 98 Prototype IDs (0) 0 Alien Tech Used (0) 0 Bonus (0) 0 TOTAL SCORE: 523 Bonus ------- None Cogmind --------- Core Integrity 0/250 Matter 300/300 Energy 100/100 System Corruption 1% Temperature Hot (205) Movement Core (150) Ox2 Location -10/Mines Parts ------- > --- POWER (1) -------- (None) > --- PROPULSION (2) --- (None) > --- UTILITY (2) ------ Small Storage Unit Seismic Detector > --- WEAPON (2) ------- Light Assault Rifle > --- INVENTORY (8) ---- Light Treads Light Treads Heat Sink Peak State ------------ > --- POWER ------------ Light Ion Engine > --- PROPULSION ------- Compact Wheel Compact Wheel > --- UTILITY ---------- Small Storage Unit Seismic Detector > --- WEAPON ----------- Small Laser Light Assault Rifle > --- INVENTORY -------- Light Treads Light Treads Aluminum Leg Aluminum Leg EM Pulse Gun Light Assault Rifle [Rating: 7] Favorites ----------- Power Ion Engine Engine Ion Engine Propulsion Compact Wheel Leg Aluminum Leg Wheel Compact Wheel Utility Small Storage Unit Device Seismic Detector Storage Small Storage Unit Weapon Light Assault Rifle Energy Gun Small Laser Ballistic Gun Light Assault Rifle Build | -11 -10 -10 ------- Run | Yrd Mat Min Slots Evolved . | . . . Power . | . . . Propulsion . | . . . Utility . | . . . Weapon . | . . . Parts Attached 13 | 6 2 5 Power 3 | 1 1 1 Engine 3 | 1 1 1 Core . | . . . Reactor . | . . . Propulsion 4 | 2 . 2 Treads . | . . . Leg 2 | . . 2 Wheel 2 | 2 . . Hover . | . . . Flight . | . . . Utility 2 | 1 1 . Device 1 | . 1 . Storage 1 | 1 . . Processor . | . . . Hackware . | . . . Protection . | . . . Artifact . | . . . Weapon 4 | 2 . 2 Energy Gun 2 | 1 . 1 Energy Cannon . | . . . Ballistic Gun 2 | 1 . 1 Ballistic Cannon . | . . . Launcher . | . . . Special Weapon . | . . . Impact Weapon . | . . . Slashing Weapon . | . . . Piercing Weapon . | . . . Special Melee Weapon . | . . . Unidentified Prototypes . | . . . Parts Lost 9 | . 1 8 Power 3 | . 1 2 Propulsion 3 | . . 3 Utility . | . . . Weapon 3 | . . 3 Highest Loss Streak 4 | . 1 4 To Critical Strikes . | . . . Average Slot Usage (%) 87 | . 88 87 Engine 12 | . 14 11 Leg 9 | . . 18 Wheel 17 | . 28 6 Device 8 | . 2 14 Storage 14 | . 14 14 Energy Gun 12 | . 14 10 Ballistic Gun 12 | . 14 11 Naked Turns . | . . . Heaviest Build 12 | 12 12 11 Greatest Support 32 | 32 32 32 Greatest Overweight (x) 2 | . . 2 Average Overweight (x) . | . . . Largest Inventory Capacity 8 | 8 8 8 Average Capacity 7 | 7 8 8 Most Carried 7 | 6 7 7 Average Carried 5 | 5 6 5 Final Capacity 8 | 8 8 8 Final Carried 7 | 6 7 3 Class Distribution -------------------- 100% | Mutant Dominant Class ---------------- Mutant | -10/Materials Mutant | -10/Mines Resources | -11 -10 -10 ----------- Run | Yrd Mat Min Matter Collected 328 | 217 68 43 Remotely . | . . . Salvage Created 163 | . 79 84 Parts 16 | . 6 10 Haulers Intercepted . | . . . Recyclers Shooed . | . . . Parts Field Recycled . | . . . Retrieved Matter . | . . . Parts Self-Destructed . | . . . Prevented . | . . . Kills | -11 -10 -10 ------- Run | Yrd Mat Min Combat Hostiles Destroyed 7 | . 2 5 Guns 7 | . 2 5 Classes Destroyed 3 | . 1 2 Swarmer 3 | . . 3 Grunt 2 | . 2 . Assembled 2 | . . 2 Best Kill Streak 3 | . 1 3 Combat Bots Only 3 | . 1 3 Max Kills in Single Turn 1 | . 1 1 Gunslinging . | . . . Exploded . | . . . Melee . | . . . Uniques/NPCs Destroyed . | . . . Combat | -11 -10 -10 -------- Run | Yrd Mat Min Hostile Shots Fired 110 | . 21 89 Missed 31 | . 10 21 Damage Taken 1041 | . 254 787 Core 254 | . 31 223 Absorbed by Shields . | . . . Core Remaining (%) 100 | 100 . . Volleys Fired 26 | . 10 16 Largest 2 | . 2 2 Hottest 60 | . 60 60 Shots Fired 44 | . 20 24 Gun 44 | . 20 24 Cannon . | . . . Launcher . | . . . Special . | . . . Kinetic 26 | . 10 16 Thermal 14 | . 10 4 Explosive . | . . . Electromagnetic 4 | . . 4 Robot Hit Streak 4 | . 2 4 Robot Miss Streak 5 | . 2 5 Penetration Max . | . . . Secondary Targets . | . . . Shots Hit Robots 22 | . 10 12 Core Hits 14 | . 3 11 Critical Kills . | . . . Critical Parts Destroyed 2 | . . 2 Critical Strikes 2 | . . 2 Destroy 2 | . . 2 Melee Attacks . | . . . Impact . | . . . Slashing . | . . . Piercing . | . . . Sneak Attacks . | . . . Combat Hostiles . | . . . Follow-up Attacks . | . . . Damage Inflicted 252 | . 97 155 Guns 238 | . 97 141 Cannons . | . . . Explosions . | . . . Melee . | . . . Ramming 14 | . . 14 Kinetic 157 | . 50 107 Thermal 57 | . 47 10 Explosive . | . . . Electromagnetic 24 | . . 24 Impact . | . . . Slashing . | . . . Piercing . | . . . Highest Corruption 1 | . 1 1 Average Corruption 1 | . 1 1 Corruption Purged . | . . . Corruption Blocked . | . . . Effects 1 | . . 1 Message Errors 1 | . . 1 Overload Shots . | . . . Overflow Damage . | . . . Projectiles . | . . . Explosions . | . . . Melee . | . . . Knockbacks . | . . . Impact . | . . . Kinetic . | . . . Secondary . | . . . Self-Inflicted Damage 6 | . . 6 Shots . | . . . Rammed 1 | . . 1 Targets Rammed 3 | . . 3 Kicked 2 | . . 2 Crushed . | . . . Highest Temperature 260 | . 64 260 Average Temperature 98 | . 23 154 Received Heat Transfer 538 | . 78 460 Siege Activations . | . . . Robots Corrupted . | . . . Combat Hostiles . | . . . Parts Fried . | . . . Impact Corruptions . | . . . Robots Melted . | . . . Combat Hostiles . | . . . Parts Melted . | . . . Heat Transferred 125 | . 100 25 Parts Sabotaged . | . . . Parts Stolen . | . . . Parts Stripped . | . . . Power Chain Reactions . | . . . Alert | -11 -10 -10 ------- Run | Yrd Mat Min Peak Influence 96 | . 55 96 Initial 21 | . . 21 Average 25 | . 18 61 Maximum Alert Level . | . . . Low Security (%) 100 | 100 100 100 Level 1 . | . . . Level 2 . | . . . Level 3 . | . . . Level 4 . | . . . Level 5 . | . . . High Security . | . . . Max Security . | . . . Squads Dispatched 1 | . 1 . Investigation . | . . . Extermination . | . . . Reinforcement 1 | . 1 . Assault . | . . . Garrison . | . . . Intercept . | . . . Searches Triggered . | . . . Construction Impeded . | . . . Haulers Reinforced . | . . . Active Scanning Responses . | . . . Cargo Convoy Interrupts . | . . . Stealth | -11 -10 -10 --------- Run | Yrd Mat Min Distress Signals 1 | . 1 . Communications Jammed . | . . . Distress Signals . | . . . Times Spotted 27 | . 4 23 Peak Tracking Total 14 | . 3 14 Tactical Retreats 4 | . . 4 Traps | -11 -10 -10 ------- Run | Yrd Mat Min Traps Triggered 1 | . 1 . Indirectly . | . . . Trap Hack Attempts . | . . . Triggered . | . . . Disarmed . | . . . Reprogrammed . | . . . Reused . | . . . Traps Extracted . | . . . Installed . | . . . Triggered . | . . . Machines | -11 -10 -10 ---------- Run | Yrd Mat Min Machines Disabled . | . . . Max in Single Turn . | . . . Machines Repaired . | . . . Machines Dismantled . | . . . Machines Sabotaged . | . . . Overloaded Fab Kills . | . . . Hacking | -11 -10 -10 --------- Run | Yrd Mat Min Machines Accessed 3 | . 3 . Terminals 3 | . 3 . Fabricators . | . . . Repair Stations . | . . . Recycling Units . | . . . Scanalyzers . | . . . Garrison Access . | . . . Total Hacks 7 | . 7 . Successful 5 | . 5 . Failed 2 | . 2 . Catastrophic . | . . . Database Lockouts . | . . . Manual . | . . . Terminals 7 | . 7 . Fabricators . | . . . Repair Stations . | . . . Recycling Units . | . . . Scanalyzers . | . . . Garrison Access . | . . . Terminal Hacks 5 | . 5 . Record 3 | . 3 . Locate Traps 1 | . 1 . Zone Layout 1 | . 1 . Fabricator Hacks . | . . . Repair Station Hacks . | . . . Recycling Unit Hacks . | . . . Scanalyzer . | . . . Garrison Access Hacks . | . . . Unauthorized Hacks . | . . . Terminals . | . . . Fabricators . | . . . Repair Stations . | . . . Recycling Units . | . . . Scanalyzers . | . . . Garrison Access . | . . . Data Cores Recovered . | . . . Used . | . . . Hacking Detections 3 | . 3 . Full Trace Events . | . . . Feedback Events . | . . . Feedback Blocked . | . . . Robot Schematics Acquired . | . . . Robots Built . | . . . Authchips . | . . . Time . | . . . Total Robot Build Rating . | . . . Part Schematics Acquired . | . . . Parts Built . | . . . Authchips . | . . . Time . | . . . Total Part Build Rating . | . . . Parts Repaired . | . . . Time . | . . . Parts Recycled . | . . . Recycled Matter . | . . . Retrieved Matter . | . . . Retrieved Components . | . . . Parts Scanalyzed . | . . . Part Schematics Acquired . | . . . Parts Damaged . | . . . Bothacking | -11 -10 -10 ------------ Run | Yrd Mat Min Used RIF Installer . | . . . Robots Hacked . | . . . Non-combat . | . . . Combat . | . . . Robot Hacks Applied . | . . . Relay Couplers Released . | . . . Fabnet Peak Effective % . | . . . Robots Rewired . | . . . Allies Hacked . | . . . Hacks Repelled . | . . . Allies | -11 -10 -10 -------- Run | Yrd Mat Min Total Allies . | . . . Largest Group . | . . . Highest-Rated Group . | . . . Highest-Rated Ally . | . . . Total Orders . | . . . Ally Attacks . | . . . Total Damage . | . . . Kills . | . . . Allies Corrupted . | . . . Allies Melted . | . . . Intel | -11 -10 -10 ------- Run | Yrd Mat Min Robot Analysis Total . | . . . Derelict Logs Recovered . | . . . Drone Launches . | . . . Drone Recoveries . | . . . Exploration | -11 -10 -10 ------------- Run | Yrd Mat Min Turns Passed 608 | 228 187 193 Spaces Moved 346 | 63 155 128 Core 11 | 10 . 1 Treads . | . . . Legs 81 | . . 81 Wheels 254 | 53 155 46 Hover . | . . . Flight . | . . . Fastest Speed 50 | 50 100 100 Average Speed 103 | 92 100 113 Slowest Speed 150 | 100 100 150 Overloaded Moves . | . . . Propulsion Burnouts . | . . . Robots Hopped . | . . . Cave-ins Triggered . | . . . Exploration Rate (%) 23 | 5 28 37 Regions Visited 2 Branch Regions 1 Pre-discovered Areas . | . . . Known Exits Taken . | . . . Unknown Exits Taken 2 | 1 1 . Scrap Searched 1 | . . 1 Spaces Dug . | . . . Terrain Destroyed . | . . . Melee . | . . . Projectile . | . . . AOE . | . . . Terrain Rammed . | . . . Walls Destroyed . | . . . Machines Disabled . | . . . Actions | -11 -10 -10 --------- Run | Yrd Mat Min Total 557 | 232 169 156 Wait 154 | 152 . 2 Move 344 | 62 154 128 Hop . | . . . Pick Up 16 | 12 3 1 Fast Attach . | . . . Attach 13 | 6 2 5 Detach . | . . . Swap . | . . . Drop 1 | . . 1 Fire 26 | . 10 16 Melee . | . . . Ram 1 | . . 1 Kick 2 | . . 2 Crush . | . . . Escape Stasis . | . . . Rewire . | . . . Trap . | . . . Miscellaneous . | . . . Route ------- -11/Scrapyard -10/Materials -10/Mines History --------- Turn | Location | Event 16 | -11/Scrapyard | Discovered new exit (range 16) 229 | -11/Scrapyard | Entered Materials 306 | -10/Materials | Build established: Mutant 402 | -10/Materials | Discovered new exit (range 12) 416 | -10/Materials | Entered Mines 506 | -10/Mines | Assembled infested the area 511 | -10/Mines | Assisted by a Guerilla fighting off Assembled 567 | -10/Mines | Core integrity fell below 50% 580 | -10/Mines | Lost 3 parts (1p2w) 602 | -10/Mines | Core integrity fell below 20% 609 | -10/Mines | Destroyed by as-36159 with Assembled Heavy Rifle Last Messages --------------- 00572_ S-10 Pest destroyed. 00576_ Kicked S-10 Pest out of the way. 00577_ Acquired 7 matter. 00577_ Kicked S-10 Pest out of the way. 00585_ Critical hit (Burn: +80). 00586_ as-50791 suffers critical hit (Destroy). 00586_ Destroyed Asb. Hover Unit. 00586_ as-39172 suffers critical hit (Burn). 00586_ as-39172 destroyed. 00588_ 8T-GIX(g): "Mission, incomplete...*fzzt*" 00588_ 8T-GIX(g) destroyed. 00588_ as-50791 destroyed. 00592_ EM Pulse Gun destroyed. 00596_ as-64349 suffers critical hit (Destroy). 00596_ Destroyed Asb. F-torch. 00598_ Aluminum Leg destroyed. 00601_ as-86925 destroyed. 00606_ Lgt. Ion Engine destroyed. 00607_ Acquired 11 matter. 00609_ Acquired 1 matter. Map ----- +----------------------------------------------------+ | | | | | | | | | | | | | | | | | | | | | | | | | | | | | | | | | | | | | | | ?????????????????????????????????? | | ??????????????????????????###????? | | ######???????####??????### ##???? | | #??????## ####??## #???? | | #??????# ##?#%[[! #???? | | #??????# ###a=*% #???? | | #???????# [%a@! #????? | | #####??## #####% ##????? | | """" # #?## ###???#####?????? | | """" # ?# ##???????????????? | | """" ## #?# #????????????????? | | ## #?## ##????????????????? | | ###### #??# #?????????????????? | | #?#### #??# #?????????????????? | | ### # #### #?????????????????? | | ### #?????????????????? | | ??# #?????????????????? | | ??# #########?????????????????? | | ??# ##????????????????????????? | | ??## * #????????????????????????? | | ??## !% ##????###????????????????? | | ### ##??# ##???????????????? | | ### #???????????????? | | #???????????????? | | #????????????????? | | ## ## ##????????????????? | | ?####?#*%! #####?????????????????? | | ??????# %###?????????????????????? | | ??????# #???????????????????????? | | #?????# ### #???????????????????? | | ####### #???????????????????? | +----------------------------------------------------+ Best States ------------- Heat Dissipation 25 Energy Generation 10 Energy Capacity 250 Matter Stores 300 Matter Capacity 300 Sight Range 16 Terrain Scan Density 10 Evasion (%) 55 Item Schematics ----------------- None Robot Schematics ------------------ None Fabricated ------------ Nothing Alien Tech Used ----------------- None Achievements -------------- None Challenges ------------ None Game ------ Seed ChargeMatterCompressor Manual? 0 Play Time 00:11:37 Cumulative 17.9 hours Start 2024.08.03 @ 22:25:10 End 2024.08.03 @ 22:34:07 Sessions 1 Manual Loads 0 Difficulty Rogue Special Mode None Game No. 69 Rogue 69 Adventurer 0 Explorer 0 Win Type - Total 0 Types 0/0/0/0/0/0/0/0/0 Lore% 14 Gallery% 25 Achievement% 21 Wizard Run 0 Options --------- Layout 2 ASCII 1 Keyboard 0 Movement Mouse Keybinds 0 Fullscreen 2 Font 24/Smallcaps Map View 50x44 Zoom Use 0% Tactical HUD 1 Map Filters NONE Filters SHIFT_HUE(155)|BRIGHTNESS(115) Steam 1 RUN: 293482b2-956b-4d53-9615-7d9c679ca6aa